bitfinex/quotes_SOLUSD_20250722
["timestamp","ask_amount","ask_price","bid_price","bid_amount"]
[1753190520830,200.91960007,202.75,202.67,16.78468397]
[1753190520831,8.17409787,202.74,202.71,16.78468397]
[1753190521132,200.91960007,202.75,202.73,16.78468397]
[1753190521337,209.09369794,202.75,202.73,17.47468397]
[1753190521635,8.17409787,202.74,202.7,25.66793561]
[1753190521839,200.91960007,202.75,202.71,36.06]
[1753190522718,200.91960007,202.75,202.71,52.84468397]
[1753190523038,200.91960007,202.75,202.72,44.23409787]
[1753190523828,26.0,202.73,202.72,44.23409787]
[1753190524019,34.17409787,202.73,202.72,44.23409787]
[1753190524231,34.17409787,202.73,202.72,36.06]
[1753190524553,34.17409787,202.73,202.63,24.85202214]
[1753190524722,16.78468397,202.74,202.62,24.48110363]
[1753190525032,16.78468397,202.74,202.64,24.5049842]
[1753190525724,1e-08,202.65,202.64,24.5049842]
[1753190525918,16.78468397,202.74,202.64,24.5049842]
[1753190526132,236.97960007,202.75,202.66,24.56745589]
[1753190526323,236.97960007,202.75,202.64,24.5049842]
[1753190526521,1e-08,202.65,202.64,24.5049842]
[1753190526719,236.97960007,202.75,202.64,24.5049842]
[1753190527040,1e-08,202.65,202.64,24.5049842]
[1753190528141,12.6744,202.74,202.64,24.5049842]
[1753190528640,1e-08,202.65,202.64,24.5049842]
[1753190529353,236.97960007,202.75,202.64,24.5049842]
[1753190529514,1e-08,202.65,202.64,24.5049842]
[1753190530046,236.97960007,202.75,202.64,24.5049842]
[1753190531443,20.57644208,202.74,202.6,24.57787334]
[1753190531654,10.0,202.73,202.6,60.65787334]
[1753190531817,251.79844007,202.75,202.6,60.65787334]
[1753190532445,1e-08,202.74,202.6,70.65787334]
[1753190532810,1e-08,202.74,202.6,71.34787334]
[1753190533015,200.91960007,202.75,202.64,16.78468397]
[1753190533235,200.91960007,202.75,202.65,60.91110091]
[1753190533540,215.73844007,202.75,202.65,60.91110091]
[1753190534133,215.73844007,202.75,202.66,10.0]
[1753190534320,215.73844007,202.75,202.67,24.53352027]
[1753190535338,200.91960007,202.75,202.67,24.53352027]
[1753190536344,200.91960007,202.75,202.66,24.48059588]
[1753190537767,217.70428404,202.75,202.74,13.01780531]
[1753190537942,247.70428404,202.75,202.74,13.01780531]
[1753190538127,252.63528404,202.75,202.74,10.54954155]
[1753190538330,267.45778504,202.75,202.74,8.08127779]
[1753190538530,262.52678504,202.75,202.74,1.49847779]
[1753190538825,262.52678504,202.75,202.74,16.78468397]
[1753190539261,16.78468397,202.74,202.6,24.52721364]
[1753190539420,20.43117493,202.73,202.71,1.26815584]
[1753190539623,11.35099853,202.74,202.72,31.749]
[1753190539932,31.70906547,202.73,202.72,19.41519558]
[1753190540120,247.45116654,202.75,202.74,26.77806547]
[1753190540324,30.0,202.74,202.37,24.0305368]
[1753190540526,18.66548617,202.74,202.73,16.78633983]
[1753190540731,18.66548617,202.74,202.35,24.99601509]
[1753190540928,68.36468397,202.73,202.4,24.49476892]
[1753190541137,68.36468397,202.73,202.39,0.20216532]
[1753190541138,68.36468397,202.73,202.42,24.73384858]
[1753190541450,68.36468397,202.73,202.44,24.86450803]
[1753190541631,53.56468397,202.73,202.72,9.38468847]
[1753190541830,31.58468397,202.73,202.72,4.45050985]
[1753190542148,68.34468397,202.73,202.72,16.78468397]
[1753190542334,36.76,202.73,202.72,9.38150985]
[1753190542519,53.54468397,202.73,202.72,6.90933573]
[1753190542723,53.54468397,202.73,202.72,1.97833573]
[1753190542940,36.76,202.73,202.72,16.78468397]
[1753190543136,53.54468397,202.73,202.72,16.78468397]
[1753190543431,66.32,202.73,202.72,38.32096571]
[1753190543631,66.32,202.73,202.72,35.84879159]
[1753190543833,36.76,202.73,202.72,35.84879159]
[1753190544038,193.91010872,202.75,202.72,24.00845586]
[1753190544238,193.91010872,202.75,202.74,17.53325179]
[1753190544452,193.91010872,202.75,202.74,15.06107767]
[1753190544946,193.91010872,202.75,202.74,12.58890355]
[1753190545142,178.98572722,202.75,202.74,12.58890355]
[1753190545344,215.76572722,202.75,202.74,10.11978605]
[1753190545755,215.76572722,202.75,202.61,24.4058922]
[1753190545954,16.78468397,202.74,202.61,24.4058922]
[1753190546543,16.78468397,202.74,202.55,24.81118536]
[1753190546752,230.26141119,202.75,202.74,16.78468397]
[1753190547057,281.98579269,202.75,202.74,11.84644897]
[1753190547361,16.78468397,202.74,202.7,24.81397277]
[1753190547654,100.45273974,202.73,202.72,16.78468397]
[1753190547841,100.45273974,202.73,202.72,1.81264897]
[1753190548047,105.38373974,202.73,202.72,1.81264897]
[1753190548231,56.09273974,202.73,202.72,21.95556646]
[1753190548439,16.78468397,202.74,202.73,7.43048889]
[1753190548755,16.78468397,202.74,202.72,19.99275167]
[1753190548937,4.931,202.73,202.72,15.04864799]
[1753190549338,4.931,202.73,202.72,30.74071788]
[1753190549738,58.55568397,202.73,202.72,3.60499247]
[1753190550040,34.491,202.74,202.7,24.98526464]
[1753190550245,210.69479269,202.75,202.74,26.1663161]
[1753190550447,210.69479269,202.75,202.74,23.69426426]
[1753190550761,210.69479269,202.75,202.74,7.80121242]
[1753190550961,210.69479269,202.75,202.74,5.32916058]
[1753190551163,215.62579269,202.75,202.74,2.85710874]
[1753190551366,215.62579269,202.75,202.74,0.3850569]
[1753190551538,215.62579269,202.75,202.62,24.08145745]
[1753190551745,193.91010872,202.75,202.74,9.38175441]
[1753190551952,251.14569113,202.75,202.74,1.96882485]
[1753190552239,254.41276319,202.75,202.74,6.9031704]
[1753190552658,254.41276319,202.75,202.74,1.9621704]
[1753190552855,283.97276319,202.75,202.74,6.89982485]
[1753190553162,266.88376319,202.75,202.74,1.95882485]
[1753190553345,281.98807922,202.75,202.74,11.85368397]
[1753190553658,298.77276319,202.75,202.74,11.85368397]
[1753190553839,298.77276319,202.75,202.74,6.77753724]
[1753190554039,247.15276319,202.75,202.74,6.77753724]
[1753190554256,283.95276319,202.75,202.74,4.39433724]
[1753190554450,12.77531603,202.73,202.46,24.05278126]
[1753190554638,49.61175603,202.74,202.72,46.38468397]
[1753190554846,53.24999491,202.73,202.72,41.45368397]
[1753190555056,53.24999491,202.73,202.72,16.39968397]
[1753190555248,28.62099491,202.73,202.72,16.39968397]
[1753190555661,25.35392285,202.73,202.72,11.45534123]
[1753190555962,69.75548985,202.73,202.72,11.45534123]
[1753190556274,109.88256191,202.73,202.72,11.85368397]
[1753190557442,93.09787794,202.73,202.67,24.96784223]
[1753190557767,56.632567,202.73,202.67,24.96784223]
[1753190558066,56.632567,202.73,202.67,24.35561808]
[1753190558569,56.632567,202.73,202.67,24.82233878]
[1753190558957,56.632567,202.73,202.67,24.34099797]
[1753190559162,56.632567,202.73,202.67,24.82233878]
[1753190559640,56.632567,202.73,202.67,24.03132045]
[1753190560351,56.632567,202.73,202.67,24.21032166]
[1753190560547,51.701567,202.73,202.67,24.21032166]
[1753190561152,51.701567,202.73,202.67,24.16436438]
[1753190562745,14.841567,202.73,202.67,24.16436438]
[1753190562945,14.841567,202.73,202.72,36.72]
[1753190563744,19.772567,202.73,202.72,29.251]
[1753190563944,14.841567,202.73,202.72,29.251]
[1753190564251,51.561567,202.73,202.67,24.52763136]
[1753190568272,56.492567,202.73,202.67,24.52763136]
[1753190569054,51.561567,202.73,202.67,24.52763136]
[1753190570378,14.841567,202.73,202.72,36.61999999]
[1753190570951,19.772567,202.73,202.72,36.61999999]
[1753190571578,56.392567,202.73,202.72,36.61999999]
[1753190572074,56.392567,202.73,202.67,24.64364211]
[1753190574750,41.551,202.73,202.67,24.64364211]
[1753190574959,56.384494,202.73,202.67,24.64364211]
[1753190575572,14.833494,202.73,202.67,24.64364211]
[1753190575875,14.833494,202.73,202.72,36.54]
[1753190576653,19.764494,202.73,202.72,36.54]
[1753190577275,19.764494,202.73,202.66,0.03]
[1753190577276,56.284494,202.73,202.67,24.67364211]
[1753190577668,56.344494,202.73,202.67,24.67364211]
[1753190579554,73.12917797,202.73,202.72,11.85368397]
[1753190579953,73.12917797,202.73,202.72,6.89478397]
[1753190581156,56.344494,202.73,202.72,11.85368397]
[1753190581360,73.12917797,202.73,202.72,11.85368397]
[1753190581599,76.797053,202.73,202.72,11.85368397]
[1753190581816,76.797053,202.73,202.72,16.78468397]
[1753190581973,101.426053,202.73,202.72,13.07650481]
[1753190582172,101.426053,202.73,202.72,16.78468397]
[1753190582173,106.357053,202.73,202.72,16.78468397]
[1753190582394,76.797053,202.73,202.72,16.78468397]
[1753190582673,75.20136858,202.73,202.72,16.78468397]
[1753190582982,73.88217315,202.73,202.72,16.78468397]
[1753190583189,78.81317315,202.73,202.72,16.78468397]
[1753190583791,42.35317315,202.73,202.72,16.78468397]
[1753190583987,84.3185255,202.73,202.72,16.78468397]
[1753190584310,78.81317315,202.73,202.72,11.85368397]
[1753190584699,84.32904044,202.73,202.72,11.85368397]
[1753190584876,78.81317315,202.73,202.72,11.85368397]
[1753190585079,84.32894996,202.73,202.72,11.85368397]
[1753190585333,78.81317315,202.73,202.72,11.85368397]
[1753190585778,84.34822167,202.73,202.72,11.85368397]
[1753190585976,78.83317315,202.73,202.72,11.85368397]
[1753190586178,40.73105343,202.73,202.72,16.78492723]
[1753190586378,77.21105343,202.73,202.72,16.78492723]
[1753190586689,75.13886282,202.73,202.72,16.78492723]
[1753190587397,80.06986282,202.73,202.72,16.78492723]
[1753190587776,75.11886282,202.73,202.72,16.78492723]
[1753190588003,75.11886282,202.73,202.72,11.84292723]
[1753190588199,36.65306547,202.72,202.71,8.74119309]
[1753190588373,43.63375032,202.72,202.71,8.74119309]
[1753190588571,45.70594093,202.72,202.71,5.21999309]
[1753190588793,66.2778755,202.73,202.71,31.70906547]
[1753190588999,46.50906547,202.72,202.71,3.28850082]
[1753190589208,14.893494,202.73,202.71,2.03805729]
[1753190589389,14.893494,202.73,202.72,41.63314133]
[1753190589390,46.60255947,202.73,202.72,41.63314133]
[1753190589708,83.68255947,202.73,202.72,16.71574133]
[1753190589898,46.60255947,202.73,202.72,1.88974133]
[1753190590211,83.66255947,202.73,202.72,26.76506547]
[1753190590410,103.40655947,202.73,202.72,16.87906547]
[1753190590787,103.40655947,202.73,202.72,6.46646253]
[1753190591005,83.66255947,202.73,202.72,16.78468397]
[1753190591187,51.953494,202.73,202.72,6.90068397]
[1753190591388,51.953494,202.73,202.72,19.96641836]
[1753190591604,83.66255947,202.73,202.72,19.96641836]
[1753190592111,133.46255947,202.73,202.72,3.71775135]
[1753190592488,138.40655947,202.73,202.72,3.71775135]
[1753190592839,101.34655947,202.73,202.72,3.71775135]
[1753190593110,133.68255947,202.73,202.72,11.84068397]
[1753190593312,118.88255947,202.73,202.72,31.70906547]
[1753190593519,123.82655947,202.73,202.72,31.70906547]
[1753190594000,107.0418755,202.73,202.72,31.70906547]
[1753190594200,69.7618755,202.73,202.72,5.11028633]
[1753190594386,107.0418755,202.73,202.72,0.16828633]
[1753190594587,123.82655947,202.73,202.72,0.16828633]
[1753190595196,36.65306547,202.72,202.71,9.9803815]
[1753190595999,36.65306547,202.72,202.71,5.0383815]
[1753190596219,123.82655947,202.73,202.72,2.14906547]
[1753190596896,68.95817797,202.73,202.72,26.76506547]
[1753190597097,84.38255947,202.73,202.72,6.99306547]
[1753190597299,69.45817797,202.73,202.72,31.70906547]
[1753190597540,52.04655947,202.73,202.72,26.76706547]
[1753190597728,89.32655947,202.73,202.72,21.29646253]
[1753190598024,89.32655947,202.73,202.72,16.35246253]
[1753190598229,89.32655947,202.73,202.72,10.16286906]
[1753190598436,89.32655947,202.73,202.72,5.22086906]
[1753190599117,36.65306547,202.72,202.71,9.9803815]
[1753190599524,36.65306547,202.72,202.71,1.31381615]
[1753190599707,84.38255947,202.73,202.72,26.76506547]
[1753190600109,89.32655947,202.73,202.72,5.09858796]
[1753190600623,94.76651381,202.73,202.72,5.09858796]
[1753190600925,98.03048641,202.73,202.72,5.09858796]
[1753190601222,101.15817896,202.73,202.72,0.03]
[1753190601409,95.71822462,202.73,202.72,0.03]
[1753190601921,95.71822462,202.73,202.72,31.70906547]
[1753190602113,95.71822462,202.73,202.72,23.05037853]
[1753190602308,101.15045458,202.73,202.72,23.05037853]
[1753190602515,95.71822462,202.73,202.72,23.05037853]
[1753190603099,36.65306547,202.72,202.71,9.9803815]
[1753190603299,46.60255947,202.73,202.72,31.70906547]
[1753190604319,51.54655947,202.73,202.72,31.70906547]
[1753190604513,88.74655947,202.73,202.72,31.70906547]
[1753190604896,51.54655947,202.73,202.72,31.70906547]
[1753190605097,46.60255947,202.73,202.72,9.9803815]
[1753190605322,51.54655947,202.73,202.72,9.9803815]
[1753190605816,36.65306547,202.68,202.67,0.03]
[1753190606125,74.01306547,202.68,202.67,0.03]
[1753190606510,98.63545437,202.68,202.67,0.03]
[1753190607196,16.78468397,202.53,202.48,24.81543371]
[1753190607397,16.78468397,202.51,202.48,24.81543371]
[1753190607606,16.78468397,202.49,202.48,24.81543371]
[1753190607803,16.78468397,202.49,202.48,18.93426221]
[1753190608024,16.78468397,202.49,202.26,24.50687246]
[1753190608025,39.21821179,202.49,202.27,29.56]
[1753190608225,54.10468397,202.48,202.47,1.65403656]
[1753190608408,61.66046554,202.48,202.47,1.65403656]
[1753190608801,16.78468397,202.47,202.45,8.52588625]
[1753190609007,89.74468397,202.46,202.45,8.52588625]
[1753190609207,89.72468397,202.46,202.45,2.53833281]
[1753190609421,96.89120873,202.46,202.45,3.25833281]
[1753190609825,35.64,202.46,202.45,0.72]
[1753190610007,89.72468397,202.46,202.45,0.72]
[1753190610519,96.53970674,202.46,202.45,0.72]
[1753190610703,59.23970674,202.46,202.45,0.72]
[1753190611027,16.78468397,202.48,202.45,0.72]
[1753190611225,6.57851832,202.46,202.45,0.72]
[1753190611606,6.57851832,202.46,202.33,29.56]
[1753190611808,6.57851832,202.46,202.34,0.6148]
[1753190612210,16.78468397,202.44,202.34,0.6148]
[1753190612607,6.56356277,202.43,202.34,0.6148]
[1753190612819,16.78468397,202.44,202.38,29.56]
[1753190613130,24.46410576,202.52,202.38,29.56]
[1753190613131,31.64021397,202.42,202.38,29.56]
[1753190613627,24.46410576,202.52,202.38,29.56]
[1753190613805,16.78468397,202.4,202.39,0.72]
[1753190614011,16.78468397,202.51,202.41,29.56]
[1753190614221,16.78468397,202.51,202.42,0.72]
[1753190614619,16.78468397,202.53,202.41,29.56]
[1753190615012,16.78468397,202.52,202.4,8.4394]
[1753190615209,31.70906547,202.41,202.4,8.4394]
[1753190615514,68.88906547,202.41,202.4,8.4394]
[1753190615720,16.78468397,202.4,202.37,2.1413]
[1753190616118,16.78468397,202.4,202.36,29.56]
[1753190616713,37.16,202.39,202.37,0.72]
[1753190616917,14.9243815,202.41,202.37,0.72]
[1753190617116,16.78468397,202.4,202.37,0.72]
[1753190618014,16.78468397,202.4,202.39,29.56]
[1753190618335,16.78468397,202.4,202.39,30.28]
[1753190618633,53.92468397,202.4,202.39,30.28]
[1753190619141,89.56468397,202.4,202.39,30.28]
[1753190619925,52.42468397,202.4,202.39,30.28]
[1753190620135,14.9243815,202.41,202.39,0.72]
[1753190620323,52.42468397,202.4,202.39,0.72]
[1753190620958,16.78468397,202.41,202.39,0.72]
[1753190621462,16.78468397,202.41,202.4,0.72]
[1753190622026,88.92468397,202.41,202.4,0.72]
[1753190623351,88.92468397,202.41,202.39,0.03]
[1753190623851,253.08718023,202.41,202.4,0.72]
[1753190624534,256.73843728,202.41,202.4,0.72]
[1753190624942,256.73843728,202.41,202.39,0.03]
[1753190625134,20.43594102,202.4,202.39,0.03]
[1753190625630,57.53594102,202.4,202.39,0.75]
[1753190626349,60.82624136,202.4,202.39,0.75]
[1753190626727,20.43594102,202.4,202.39,0.75]
[1753190626930,57.51594102,202.4,202.39,0.75]
[1753190627348,60.80857285,202.4,202.39,0.75]
[1753190629431,60.80857285,202.4,202.39,0.03]
[1753190629628,16.78468397,202.39,202.36,30.27]
[1753190629939,16.78468397,202.37,202.36,30.27]
[1753190630131,23.7447292,202.37,202.36,30.27]
[1753190631138,23.7447292,202.37,202.36,26.55583154]
[1753190631336,16.78468397,202.37,202.36,26.55583154]
[1753190631928,16.78468397,202.4,202.36,26.55583154]
[1753190632128,22.21691393,202.4,202.24,29.56]
[1753190632341,22.21691393,202.4,202.33,0.71]
[1753190632342,5.43222996,202.39,202.33,0.71]
[1753190632648,16.78468397,202.37,202.33,0.71]
[1753190632856,16.78468397,202.37,202.24,29.56]
[1753190633152,16.78468397,202.37,202.34,0.71]
[1753190633325,22.21691393,202.37,202.31,0.71]
[1753190633530,16.78468397,202.31,202.28,0.71]
[1753190633834,16.78468397,202.29,202.25,0.71]
[1753190634254,37.12,202.28,202.25,0.71]
[1753190634439,16.78468397,202.27,202.25,0.71]
[1753190634960,16.78468397,202.27,202.26,0.71]
[1753190635848,16.78468397,202.31,202.26,0.71]
[1753190636052,16.78468397,202.29,202.26,0.71]
[1753190636851,16.78468397,202.29,202.24,29.56]
[1753190637353,20.35661146,202.32,202.23,12.0663]
[1753190637354,14.9243815,202.32,202.26,29.56]
[1753190637544,16.78468397,202.27,202.26,29.56]
[1753190637945,22.21691393,202.31,202.26,29.56]
[1753190638138,16.78468397,202.31,202.26,29.56]
[1753190638338,22.21691393,202.31,202.24,29.56]
[1753190638539,22.21691393,202.29,202.24,37.5649]
[1753190639052,22.21691393,202.29,202.25,0.03]
[1753190639262,16.78468397,202.27,202.26,0.03]
[1753190639432,16.78468397,202.27,202.24,37.5649]
[1753190640138,22.32162501,202.26,202.25,0.03]
[1753190640337,37.24,202.28,202.24,29.56]
[1753190640563,5.53672893,202.25,202.24,23.48254556]
[1753190640866,54.00468397,202.25,202.24,23.48254556]
[1753190641064,16.78468397,202.25,202.24,23.48254556]
[1753190641243,54.00468397,202.25,202.24,23.48254556]
[1753190641555,59.5414129,202.25,202.24,19.76715183]
[1753190642134,16.78468397,202.24,202.23,12.0663]
[1753190642363,16.78468397,202.24,202.2,7.9525]
[1753190642556,22.3176568,202.21,202.2,7.9525]
[1753190642751,59.4976568,202.21,202.2,7.9525]
[1753190642933,53.96468397,202.21,202.18,13.2507]
[1753190643142,16.78468397,202.19,202.18,13.2507]
[1753190643447,20.4711667,202.19,202.18,13.2507]
[1753190643946,57.6311667,202.19,202.18,13.2507]
[1753190644140,66.4831202,202.19,202.18,13.2507]
[1753190644343,60.94918694,202.19,202.18,13.2507]
[1753190644560,23.78918694,202.19,202.18,40.33304178]
[1753190644737,16.78468397,202.14,202.08,54.40407777]
[1753190644940,93.5311667,202.13,202.12,16.78468397]
[1753190645159,96.86918694,202.13,202.12,16.78468397]
[1753190645540,96.88918694,202.13,202.12,10.70582089]
[1753190645742,64.96942791,202.13,202.12,10.70582089]
[1753190646051,102.40972285,202.13,202.12,16.78468397]
[1753190646251,96.88918694,202.13,202.12,16.78468397]
[1753190646568,102.40309944,202.13,202.12,10.66885804]
[1753190646741,96.88918694,202.13,202.12,10.66885804]
[1753190647151,96.88918694,202.13,202.12,16.78468397]
[1753190647666,96.88918694,202.13,202.12,10.47691688]
[1753190647667,96.84918694,202.13,202.12,10.47691688]
[1753190647964,96.83423803,202.13,202.12,10.47691688]
[1753190648154,97.53423803,202.13,202.12,16.78468397]
[1753190648360,16.78468397,202.12,201.97,24.90213764]
[1753190648550,31.70906547,202.13,202.12,5.17050352]
[1753190648742,31.70906547,202.15,202.14,52.93058576]
[1753190648941,103.06906547,202.15,202.14,31.99877144]
[1753190649145,103.06906547,202.15,202.14,18.05908767]
[1753190649565,72.33306547,202.15,202.14,12.27216281]
[1753190649766,14.9243815,202.13,202.12,9.9803815]
[1753190649955,14.9243815,202.13,202.12,4.39137169]
[1753190649956,69.26906547,202.13,202.12,4.39137169]
[1753190650264,31.70906547,202.13,202.12,3.25757169]
[1753190650467,69.26906547,202.13,202.12,31.70906547]
[1753190650654,74.21306547,202.13,202.12,31.70906547]
[1753190650856,36.65306547,202.13,202.12,31.70906547]
[1753190651250,36.65306547,202.13,202.12,26.07657315]
[1753190651450,74.23306547,202.13,202.12,19.54043909]
[1753190651671,36.65306547,202.13,202.12,19.54043909]
[1753190651869,74.29306547,202.13,202.12,19.54043909]
[1753190652174,74.29306547,202.13,202.12,11.84068397]
[1753190652670,74.29306547,202.13,202.12,5.93348348]
[1753190653052,69.34906547,202.13,202.12,11.84068397]
[1753190653266,74.29306547,202.13,202.12,11.84068397]
[1753190653651,16.78468397,202.12,202.01,24.13867743]
[1753190653861,16.78468397,202.12,202.11,37.61999999]
[1753190654060,16.78468397,202.12,202.11,31.39100937]
[1753190654264,21.72868397,202.12,202.11,31.39100937]
[1753190654660,21.72868397,202.12,202.11,25.26208996]
[1753190654952,74.23306547,202.12,202.11,25.26208996]
[1753190655152,74.23306547,202.12,201.98,24.70064732]
[1753190655572,16.78468397,202.12,202.11,16.78468397]
[1753190656169,16.78468397,202.12,202.11,10.63586112]
[1753190656554,14.9243815,202.13,202.11,11.34586112]
[1753190656880,14.9243815,202.13,202.06,24.38344114]
[1753190657047,14.9243815,202.13,202.11,0.71]
[1753190657048,37.72,202.12,202.11,0.71]
[1753190657253,35.0,202.14,202.11,16.78468397]
[1753190657670,164.16249626,202.15,202.12,29.56]
[1753190657880,141.05589626,202.15,202.13,41.7851]
[1753190658173,96.97269626,202.15,202.14,37.7295]
[1753190658364,118.10609626,202.15,202.14,29.56]
[1753190658548,96.43949626,202.15,202.14,29.56]
[1753190659151,45.30619626,202.15,202.14,29.56]
[1753190659370,83.10619626,202.15,202.14,29.56]
[1753190659765,69.77289626,202.15,202.14,29.56]
[1753190659964,86.55758023,202.15,202.14,29.56]
[1753190662478,48.75758023,202.15,202.14,29.56]
[1753190662782,86.47758023,202.15,202.14,29.56]
[1753190664480,16.78468397,202.14,202.13,10.0]
[1753190665590,16.78468397,202.14,202.11,10.0]
[1753190665786,54.44468397,202.13,202.12,16.78468397]
[1753190667280,16.78468397,202.14,202.13,7.41530571]
[1753190667476,54.42468397,202.14,202.13,7.41530571]
[1753190671068,54.42468397,202.14,202.13,36.97530571]
[1753190671878,16.78468397,202.14,202.13,36.97530571]
[1753190672188,54.32468397,202.14,202.13,36.97530571]
[1753190673085,54.32468397,202.14,202.13,7.41530571]
[1753190673391,16.78468397,202.14,202.13,36.97530571]
[1753190673575,54.38468397,202.14,202.13,36.97530571]
[1753190675196,54.36468397,202.14,202.13,36.97530571]
[1753190675883,54.34468397,202.14,202.13,36.97530571]
[1753190676592,37.56,202.14,202.13,46.97530571]
[1753190677089,54.34468397,202.14,202.13,46.97530571]
[1753190677473,37.54,202.14,202.13,46.97530571]
[1753190677679,16.78468397,202.14,202.13,46.97530571]
[1753190678165,16.78468397,202.14,202.13,135.47530571]
[1753190678979,16.78468397,202.14,202.13,46.97530571]
[1753190679389,7.34289626,202.15,202.13,135.47530571]
[1753190680987,7.34289626,202.15,202.13,172.91530571]
[1753190682587,7.34289626,202.15,202.13,135.47530571]
[1753190683904,16.78468397,202.14,202.13,17.41530571]
[1753190684285,16.78468397,202.14,202.13,7.41530571]
[1753190685182,54.22468397,202.14,202.13,7.41530571]
[1753190685899,54.20468397,202.14,202.13,17.41530571]
[1753190686283,54.20468397,202.14,202.13,46.97530571]
[1753190686984,16.78468397,202.14,202.13,46.97530571]
[1753190687303,54.18468397,202.14,202.13,46.97530571]
[1753190688699,54.14468397,202.14,202.13,46.97530571]
[1753190692402,54.06468397,202.14,202.13,7.41530571]
[1753190692796,54.04468397,202.14,202.13,7.41530571]
[1753190695213,54.00468397,202.14,202.13,17.41530571]
[1753190695407,16.78468397,202.14,202.13,46.97530571]
[1753190695622,54.00468397,202.14,202.13,46.97530571]
[1753190696416,16.78468397,202.14,202.13,46.97530571]
[1753190696591,54.00468397,202.14,202.13,46.97530571]
[1753190697210,16.78468397,202.14,202.13,46.97530571]
[1753190698110,16.78468397,202.14,202.13,17.41530571]
[1753190698988,16.78468397,202.14,202.13,7.41530571]
[1753190699609,20.45211491,202.14,202.13,7.41530571]
[1753190699790,16.78468397,202.14,202.13,7.41530571]
[1753190700303,17.45468397,202.14,202.13,7.41530571]
[1753190700505,21.12741917,202.14,202.13,7.41530571]
[1753190700707,21.12741917,202.14,202.08,0.03]
[1753190700897,16.78468397,202.12,202.08,0.03]
[1753190701097,16.78468397,202.1,202.08,0.03]
[1753190701297,16.78468397,202.1,201.97,0.72]
[1753190701298,16.78468397,202.08,201.97,0.72]
[1753190701610,16.78468397,202.06,201.99,10.0]
[1753190701808,16.78468397,202.04,202.0,0.72]
[1753190701993,16.78468397,202.02,202.0,0.72]
[1753190702314,16.78468397,202.02,202.01,0.72]
[1753190702510,20.46633366,202.02,202.01,10.72]
[1753190702713,16.78468397,202.02,202.01,10.72]
[1753190703086,20.46577232,202.02,202.01,10.72]
[1753190703705,20.46577232,202.02,201.97,0.72]
[1753190704018,16.78468397,202.0,201.97,0.72]
[1753190704199,16.78468397,201.98,201.97,0.72]
[1753190704510,54.04468397,201.98,201.97,10.72]
[1753190705992,57.72361386,201.98,201.96,29.56]
[1753190706210,54.04468397,201.98,201.97,0.72]
[1753190706508,57.72252943,201.98,201.97,0.72]
[1753190707385,54.04468397,201.98,201.97,0.72]
[1753190708186,57.72083598,201.98,201.97,0.72]
[1753190708602,57.72083598,201.98,201.96,10.0]
[1753190708794,20.46083598,201.97,201.96,10.0]
[1753190709022,20.46083598,201.97,201.96,10.72]
[1753190709508,16.78468397,201.97,201.96,10.72]
[1753190710922,16.78468397,201.97,201.96,40.28]
[1753190711613,16.84468397,202.08,202.04,10.0]
[1753190711798,16.78468397,202.06,202.04,10.0]
[1753190711996,57.636716,202.05,202.04,10.72]
[1753190712201,20.456716,202.05,202.04,10.72]
[1753190712395,57.636716,202.05,202.04,10.72]
[1753190712595,37.18,202.05,202.04,40.28]
[1753190712810,0.06,202.08,202.07,10.0]
[1753190713010,0.06,202.08,202.07,39.56]
[1753190713205,0.06,202.08,202.07,40.28]
[1753190714818,37.24,202.08,202.04,10.0]
[1753190715027,20.45725079,202.07,202.02,10.0]
[1753190715201,3.67304884,202.06,202.0,10.72]
[1753190715517,53.98468397,202.05,202.04,10.0]
[1753190715716,16.78468397,202.04,202.02,10.0]
[1753190715914,20.45773281,202.03,202.02,10.0]
[1753190716115,20.45773281,202.03,202.02,10.72]
[1753190717023,20.45773281,202.03,202.02,40.28]
[1753190717521,37.28,202.03,202.02,40.28]
[1753190717824,54.06468397,202.06,202.05,39.56]
[1753190717998,54.06468397,202.06,202.05,40.22]
[1753190718321,37.28,202.06,202.05,40.22]
[1753190718521,0.06,202.08,202.07,39.56]
[1753190718912,0.06,202.08,202.07,40.71487801]
[1753190720118,0.06,202.08,202.07,129.21487801]
[1753190720448,0.06,202.08,202.07,128.72]
[1753190721419,16.84468397,202.08,202.07,39.56]
[1753190721623,20.51438477,202.08,202.07,39.56]
[1753190722025,20.51438477,202.08,202.07,40.22]
[1753190722203,20.51438477,202.08,202.07,39.56]
[1753190722909,20.51438477,202.08,202.07,10.0]